Cogmind - Beta 15 @@@ ROGUE MODE // 2025.07.25 @ 23:05:31 Player: COGMINDER69 Result: Smashed by cave-in Performance ------------- Evolutions (0) 0 Regions Visited (2) 400 Robots Destroyed (20) 100 Value Destroyed (563) 563 Prototype IDs (2) 40 Alien Tech Used (0) 0 Bonus (0) 0 TOTAL SCORE: 1103 Bonus ------- None Cogmind --------- Core Integrity 0/250 Matter 300/300 Energy 100/100 System Corruption 5% Temperature Cool (0) Movement Treading (240) Ox1 Location -10/Mines Parts ------- > --- POWER (1) -------- (None) > --- PROPULSION (2) --- Light Treads > --- UTILITY (2) ------ Large Storage Unit > --- WEAPON (2) ------- Light Cannon > --- INVENTORY (15) --- Light Ion Engine Light Treads Hover Unit Hover Unit Flight Unit High-capacity Matter Pod (200) Signal Interpreter Light Armor Plating Hacking Suite Hacking Suite Assault Rifle Battle Rifle Light Cannon Rocket Launcher Datajack Peak State ------------ > --- POWER ------------ Ion Engine > --- PROPULSION ------- Light Treads Light Treads > --- UTILITY ---------- Large Storage Unit Hardened Light Armor Plating > --- WEAPON ----------- Battle Rifle Light Cannon > --- INVENTORY -------- Light Ion Engine Light Treads Hover Unit Hover Unit Flight Unit High-capacity Matter Pod Light Armor Plating Hacking Suite Hacking Suite Assault Rifle Light Cannon Grenade Launcher Rocket Launcher Datajack Mining Claw [Rating: 11] Favorites ----------- Power Ion Engine Engine Ion Engine Propulsion Light Treads Treads Light Treads Utility Small Storage Unit Storage Small Storage Unit Protection Hardened Light Armor Plating Weapon Light Cannon Ballistic Gun Assault Rifle Ballistic Cannon Light Cannon Slashing Weapon Mining Claw Build | -11 -10 -10 ------- Run | Yrd Mat Min Slots Evolved . | . . . Power . | . . . Propulsion . | . . . Utility . | . . . Weapon . | . . . Parts Attached 14 | 6 7 1 Power 2 | 1 1 . Engine 2 | 1 1 . Core . | . . . Reactor . | . . . Propulsion 2 | 2 . . Treads 2 | 2 . . Leg . | . . . Wheel . | . . . Hover . | . . . Flight . | . . . Utility 4 | 1 3 . Device . | . . . Storage 2 | 1 1 . Processor . | . . . Hackware . | . . . Protection 2 | . 2 . Artifact . | . . . Weapon 6 | 2 3 1 Energy Gun . | . . . Energy Cannon . | . . . Ballistic Gun 3 | 2 1 . Ballistic Cannon 2 | . 2 . Launcher . | . . . Special Weapon . | . . . Impact Weapon . | . . . Slashing Weapon 1 | . . 1 Piercing Weapon . | . . . Special Melee Weapon . | . . . Unidentified Prototypes . | . . . Parts Lost 4 | . . 4 Power 1 | . . 1 Propulsion 1 | . . 1 Utility 1 | . . 1 Weapon 1 | . . 1 Highest Loss Streak 4 | . . 4 To Critical Strikes . | . . . Average Backups 8 | 2 8 14 Power 1 | . 1 1 Propulsion 3 | 1 3 4 Utility 1 | . 1 4 Weapon 2 | . 2 4 Tool/Special . | . . . Unused Backups 16 | . 2 14 Power 1 | . . 1 Propulsion 6 | . 2 4 Utility 5 | . . 5 Weapon 3 | . . 3 Tool/Special 1 | . . 1 Average Slot Usage (%) 95 | . 96 91 Engine 13 | . 14 11 Treads 27 | . 27 25 Storage 14 | . 14 14 Protection 11 | . 11 11 Ballistic Gun 11 | . 12 9 Ballistic Cannon 15 | . 15 14 Peak Build Rating 11 | 6 10 11 Average Rating 7 | 5 7 9 On Entrance 5 | . 6 10 Naked Turns . | . . . Heaviest Build 36 | 12 36 35 Greatest Support 40 | 40 40 40 Greatest Overweight (x) . | . . . Average Overweight (x) . | . . . Largest Inventory Capacity 15 | 8 15 15 Average Capacity 10 | 7 9 15 Most Carried 15 | 3 14 15 Average Carried 8 | 2 8 14 Final Capacity 15 | 8 15 15 Final Carried 15 | 3 14 15 Class Distribution -------------------- 100% | Mutant Dominant Class ---------------- Mutant | -10/Materials Mutant | -10/Mines Resources | -11 -10 -10 ----------- Run | Yrd Mat Min Matter Collected 897 | 259 573 65 Remotely . | . . . Salvage Created 609 | 54 480 75 Parts 32 | . 28 4 Haulers Intercepted 1 | . 1 . Recyclers Shooed 1 | . 1 . Parts Field Recycled . | . . . Retrieved Matter . | . . . Parts Self-Destructed . | . . . Prevented . | . . . Kills | -11 -10 -10 ------- Run | Yrd Mat Min Combat Hostiles Destroyed 13 | . 11 2 Guns 5 | . 4 1 Cannons 8 | . 7 1 Classes Destroyed 5 | 1 4 . Hauler 1 | . 1 . Recycler 1 | 1 . . Operator 3 | . 3 . Watcher 2 | . 2 . Grunt 13 | . 11 2 Best Kill Streak 4 | 1 4 2 Combat Bots Only 4 | . 4 2 Max Kills in Single Turn 2 | 1 2 1 Gunslinging . | . . . Exploded . | . . . Melee . | . . . Uniques/NPCs Destroyed . | . . . Combat | -11 -10 -10 -------- Run | Yrd Mat Min Hostile Shots Fired 39 | . 35 4 Missed 13 | . 12 1 Hits 26 | . 23 3 Projectile 26 | . 23 3 Damage Taken 1051 | . 254 797 Core 270 | . 32 238 Absorbed by Shields . | . . . Redirected to Shielding 6 | . 6 . Core Remaining (%) 100 | 100 . . Volleys Fired 47 | 3 40 4 Largest 2 | 2 2 2 Hottest 60 | 40 60 55 Shots Fired 94 | 6 80 8 Gun 46 | 6 36 4 Cannon 48 | . 44 4 Launcher . | . . . Special . | . . . Kinetic 94 | 6 80 8 Thermal . | . . . Explosive . | . . . Electromagnetic . | . . . Robot Hit Streak 8 | 2 8 2 Robot Miss Streak 6 | 1 6 1 Penetration Max . | . . . Secondary Targets . | . . . Shots Hit Robots 56 | 4 48 4 Core Hits 26 | 2 22 2 Critical Kills . | . . . Critical Parts Destroyed . | . . . Critical Strikes 3 | . 3 . Blast 3 | . 3 . Melee Attacks 2 | . . 2 Impact . | . . . Slashing 2 | . . 2 Piercing . | . . . Sneak Attacks . | . . . Combat Hostiles . | . . . Follow-up Attacks . | . . . Damage Inflicted 874 | 48 758 68 Guns 349 | 48 264 37 Cannons 525 | . 494 31 Explosions . | . . . Melee . | . . . Ramming . | . . . Kinetic 874 | 48 758 68 Thermal . | . . . Explosive . | . . . Electromagnetic . | . . . Impact . | . . . Slashing . | . . . Piercing . | . . . Highest Corruption 5 | . 1 5 Average Corruption 1 | . 1 1 Corruption Purged . | . . . Corruption Blocked . | . . . Effects 2 | . 2 . Matter Fused 1 | . 1 . Energy Discharges 1 | . 1 . Overload Shots . | . . . Overflow Damage 8 | . 8 . Projectiles 8 | . 8 . Explosions . | . . . Melee . | . . . Knockbacks 4 | . 4 . Impact . | . . . Kinetic 4 | . 4 . Secondary . | . . . Self-Inflicted Damage . | . . . Shots . | . . . Rammed . | . . . Targets Rammed . | . . . Kicked . | . . . Crushed . | . . . Highest Temperature 109 | . 109 69 Average Temperature 32 | . 31 38 Received Heat Transfer 156 | . 138 18 Siege Activations . | . . . Martial Activations . | . . . Shielding Activations . | . . . Robots Disrupted . | . . . Combat Hostiles . | . . . Robots Corrupted . | . . . Combat Hostiles . | . . . Parts Fried . | . . . Impact Corruptions . | . . . Robots Melted . | . . . Combat Hostiles . | . . . Parts Melted . | . . . Heat Transferred . | . . . Parts Sabotaged . | . . . Parts Stolen . | . . . Parts Stripped . | . . . Power Chain Reactions . | . . . Alert | -11 -10 -10 ------- Run | Yrd Mat Min Maximum Alert Level . | . . . Low Security (%) 100 | 100 100 100 Level 1 . | . . . Level 2 . | . . . Level 3 . | . . . Level 4 . | . . . Level 5 . | . . . High Security . | . . . Max Security . | . . . Peak Influence 99 | 5 99 60 Initial 19 | . . 19 Average 29 | . 33 20 Influence Increases 501 | 5 425 71 Destroy 0b10 Robot/C 260 | . 220 40 Destroy 0b10 Robot/NC 35 | 5 30 . Destroy Leader 76 | . 66 10 Successful Hack 38 | . 33 5 Disable Machine 30 | . 15 15 Destroy Structure 2 | . 1 1 Lose Combat Pursuer 60 | . 60 . Influence Decreases 501 | 5 373 123 Entered New Map 33 | . . 33 Time Decay 467 | 5 373 89 Lost Part 1 | . . 1 Squads Dispatched 6 | . 5 1 Investigation 3 | . 2 1 Extermination . | . . . Reinforcement 3 | . 3 . Assault . | . . . Garrison . | . . . Intercept . | . . . Searches Triggered . | . . . Construction Impeded . | . . . Haulers Reinforced . | . . . Active Scanning Responses . | . . . Cargo Convoy Interrupts . | . . . Stealth | -11 -10 -10 --------- Run | Yrd Mat Min Distress Signals 1 | . 1 . Communications Jammed . | . . . Distress Signals . | . . . Times Spotted 29 | . 27 2 Peak Tracking Total 5 | . 5 2 Tactical Retreats 4 | . 4 . Traps | -11 -10 -10 ------- Run | Yrd Mat Min Traps Triggered 2 | . 2 . Indirectly . | . . . Trap Hack Attempts . | . . . Triggered . | . . . Disarmed . | . . . Reprogrammed . | . . . Reused . | . . . Traps Extracted . | . . . Installed . | . . . Triggered . | . . . Machines | -11 -10 -10 ---------- Run | Yrd Mat Min Machines Disabled 2 | . 1 1 Max in Single Turn 1 | . 1 1 Machines Repaired . | . . . Machines Dismantled . | . . . Machines Sabotaged . | . . . Overloaded Fab Kills . | . . . Hacking | -11 -10 -10 --------- Run | Yrd Mat Min Machines Accessed 7 | . 6 1 Terminals 6 | . 5 1 Fabricators . | . . . Repair Stations . | . . . Recycling Units 1 | . 1 . Scanalyzers . | . . . Garrison Access . | . . . Total Hacks 31 | . 26 5 Successful 15 | . 13 2 Failed 16 | . 13 3 Catastrophic 4 | . 1 3 Database Lockouts . | . . . Manual 13 | . 8 5 Terminals 30 | . 25 5 Fabricators . | . . . Repair Stations . | . . . Recycling Units 1 | . 1 . Scanalyzers . | . . . Garrison Access . | . . . Terminal Hacks 9 | . 8 1 Record 1 | . 1 . Prototype ID Bank 1 | . 1 . Branch Access Points 2 | . 1 1 Locate Traps 1 | . 1 . Hauler Manifests 1 | . 1 . Registered Prototypes 1 | . 1 . Zone Layout 2 | . 2 . Fabricator Hacks . | . . . Repair Station Hacks . | . . . Recycling Unit Hacks 1 | . 1 . Report Inventory 1 | . 1 . Scanalyzer . | . . . Garrison Access Hacks . | . . . Unauthorized Hacks 5 | . 4 1 Terminals 5 | . 4 1 Botnet 5 | . 4 1 Fabricators . | . . . Repair Stations . | . . . Recycling Units . | . . . Scanalyzers . | . . . Garrison Access . | . . . Data Cores Recovered . | . . . Used . | . . . Hacking Detections 6 | . 5 1 Full Trace Events 5 | . 4 1 Feedback Events . | . . . Feedback Blocked . | . . . Robot Schematics Acquired . | . . . Robots Built . | . . . Authchips . | . . . Time . | . . . Total Robot Build Rating . | . . . Part Schematics Acquired . | . . . Parts Built . | . . . Authchips . | . . . Time . | . . . Total Part Build Rating . | . . . Parts Repaired . | . . . Time . | . . . Parts Recycled . | . . . Recycled Matter . | . . . Retrieved Matter . | . . . Retrieved Components . | . . . Parts Scanalyzed . | . . . Part Schematics Acquired . | . . . Parts Damaged . | . . . Bothacking | -11 -10 -10 ------------ Run | Yrd Mat Min Used RIF Installer . | . . . Robots Hacked . | . . . Non-combat . | . . . Combat . | . . . Robot Hacks Applied . | . . . Relay Couplers Released . | . . . Fabnet Peak Effective % . | . . . Robots Rewired . | . . . Allies Hacked . | . . . Hacks Repelled . | . . . Allies | -11 -10 -10 -------- Run | Yrd Mat Min Total Allies . | . . . Largest Group . | . . . Highest-Rated Group . | . . . Highest-Rated Ally . | . . . Total Orders . | . . . Ally Attacks . | . . . Total Damage . | . . . Kills . | . . . Allies Corrupted . | . . . Allies Melted . | . . . Intel | -11 -10 -10 ------- Run | Yrd Mat Min Active Infowar (turns) . | . . . Robot Analysis Total . | . . . Derelict Logs Recovered 1 | . . 1 Drone Launches . | . . . Drone Recoveries . | . . . Exploration | -11 -10 -10 ------------- Run | Yrd Mat Min Turns Passed 1834 | 116 1465 253 Spaces Moved 809 | 52 672 85 Core 2 | 2 . . Treads 807 | 50 672 85 Legs . | . . . Wheels . | . . . Hover . | . . . Flight . | . . . Fastest Speed 50 | 50 160 160 Average Speed 159 | 155 160 160 Slowest Speed 160 | 160 160 160 Overloaded Moves . | . . . Propulsion Burnouts . | . . . Robots Hopped . | . . . Potential Cave-ins . | . . . Cave-ins Triggered 3 | . . 3 Exploration Rate (%) 39 | 6 94 18 Regions Visited 2 Branch Regions 1 Pre-discovered Areas . | . . . Known Exits Taken 1 | . 1 . Unknown Exits Taken 1 | 1 . . Scrap Searched 1 | . . 1 Spaces Dug 2 | . . 2 Terrain Destroyed 2 | . . 2 Melee 2 | . . 2 Projectile . | . . . AOE . | . . . Terrain Rammed . | . . . Walls Destroyed . | . . . Machines Disabled . | . . . Actions | -11 -10 -10 --------- Run | Yrd Mat Min Total 1250 | 78 981 191 Wait 351 | 15 240 96 Move 807 | 51 671 85 Hop . | . . . Pick Up 17 | 3 12 2 Fast Attach 14 | 6 8 . Attach . | . . . Detach 1 | . 1 . Swap 3 | . 2 1 Drop 8 | . 7 1 Fire 47 | 3 40 4 Melee 2 | . . 2 Ram . | . . . Kick . | . . . Crush . | . . . Escape Stasis . | . . . Rewire . | . . . Trap . | . . . Miscellaneous . | . . . Route ------- -11/Scrapyard -10/Materials (discovered 4 exits: [*Mat x2] / *Min x2) -10/Mines (discovered 1 exit: [*Mat]) History --------- Turn | Location | Event 5 | -11/Scrapyard | Discovered new exit (range 16) 117 | -11/Scrapyard | Entered Materials 183 | -10/Materials | Discovered new exit (range 16) 308 | -10/Materials | Build established: Mutant 691 | -10/Materials | Discovered new exit (range 16) 802 | -10/Materials | Discovered new exit (range 8) 817 | -10/Materials | Derelicts attacked the area 1020 | -10/Materials | Identified exit to Mines 1132 | -10/Materials | Discovered new exit (range 7) 1582 | -10/Materials | Entered Mines 1602 | -10/Mines | Received a Rocket Launcher from a helpful Derelict 1626 | -10/Mines | Discovered new exit (range 6) 1720 | -10/Mines | Learned 2 Materials zone layouts 1742 | -10/Mines | Assembled infested the area 1794 | -10/Mines | Crushed by falling debris 1795 | -10/Mines | Crushed by falling debris 1795 | -10/Mines | Core integrity fell below 50% 1795 | -10/Mines | Core integrity fell below 20% 1826 | -10/Mines | Lost 4 parts (1p1n1u1w) 1836 | -10/Mines | Crushed by falling debris 1836 | -10/Mines | Smashed by cave-in Last Messages --------------- Acquired derelict log, extracted data. Data stored: Materials zone layouts (x2). K-01 Serf collects debris. ALERT: Infestation in the mines, dispatching Demolisher response squad. K-01 Serf collects debris. U-05 Engineer builds a Wall. The unstable cave ceiling collapses. Crushed by falling debris. Ion Engine destroyed. System corrupted by crushing effect (+1). Mining Claw destroyed. System corrupted by crushing effect (+1). The unstable cave ceiling collapses. Crushed by falling debris. Hrd. Light Armor Plating destroyed. System corrupted by crushing effect (+1). Lgt. Treads destroyed. System corrupted by crushing effect (+1). The unstable cave ceiling collapses. Crushed by falling debris. Map ----- +----------------------------------------------------+ | ??????????????????????????????? | | ??????????????????????????????? | | ??????????????????????????????? | | ??????????????????????????????? | | ??????????????????????????????? | | ??????????????????????????????? | | ??????????????????????????????? | | ??????????????????????????????? | | ??????????????????????????????? | | ??????????????????????????????? | | ??????????????????????????????? | | ??????????????????????????????? | | ??????????###?????????????????? | | ?????????# ??????????????????? | | ????????? ??????????????????? | | ????????# ??????????????????? | | ??????## ??????????????????? | | ??????# ???????????????????? | | ?????? ???????????????????? | | ?????? ???????????????????? | | ??????# #???????????????????? | | ??????# ##??????????????????? | | ??????? ##?????????????????? | | ??????? ##????????????????? | | ?????### ##???????????????? | | ?????#@# #???????????????? | | ?????### ## #??????????????? | | ???##### #???????????????????? | | ???# #???????????????????? | | ???# #???????????????????? | | ???# #####???????????????????? | | ???# #???????????????????????? | | ???# #???????????????????????? | | ???# #???????????????????????? | | ???# #???????????????????????? | | ???# #???????????????????????? | | ???# #???????????????????????? | | ???# #???????????????????????? | | ???# #???????????????????????? | | ???# #???????????????????????? | | ???# #???????????????????????? | | ???# #???????????????????????? | | ???# #???????????????????????? | | ???# #??????????####?????????? | | ??## ####??????## ##????????? | | ?## ##????## #????????? | | ?# ##??## #????????? | | ?# #??# #????????? | | ?# #?## #????????? | | ?# ##?# #????????? | +----------------------------------------------------+ Best States ------------- Heat Dissipation 25 Energy Generation 10 Energy Capacity 250 Matter Stores 300 Matter Capacity 300 Sight Range 16 Terrain Scan Density 10 Armor Coverage 150 Weapon Shielding 33 Evasion (%) 40 Recoil Reduction 2 Item Schematics ----------------- None Robot Schematics ------------------ None Fabricated ------------ Nothing Repaired ---------- Nothing Alien Tech Used ----------------- None Achievements -------------- None Challenges ------------ None Game ------ Seed GravityColdShell Manual? 0 Play Time 00:21:58 Cumulative 11.2 hours Start 2025.07.25 @ 22:42:49 End 2025.07.25 @ 23:05:31 Sessions 1 Manual Loads 0 Difficulty Rogue Special Mode None Game No. 22 Rogue 22 Adventurer 0 Explorer 0 Win Type - Total 0 Types 0/0/0/0/0/0/0/0/0/0 Lore% 8 Gallery% 15 Achievement% 19 Wizard Run 0 Options --------- Layout 0 ASCII 0 Keyboard 0 Movement Mouse Keybinds 0 Fullscreen 2 Font 24/Smallcaps Map View 76x50 Zoom Use 0% Tactical HUD 0 Map Filters NONE Filters NONE Steam 1 RUN: 6fa2ca1e-804b-4df3-bc6d-1f9f4c3dad7a